Cogmind - Beta 13 @@@ ROGUE MODE // 2024.03.21 @ 19:56:53 Player: f_ Result: Self-destructed Performance ------------- Evolutions (2) 1000 Regions Visited (4) 800 Robots Destroyed (13) 65 Value Destroyed (267) 267 Prototype IDs (4) 80 Alien Tech Used (0) 0 Bonus (0) 0 TOTAL SCORE: 2212 Bonus ------- None Cogmind --------- Core Integrity 446/550 Matter 300/300 Energy 160/160 System Corruption 1% Temperature Cool (0) Movement Hovering (56) Location -8/Storage Parts ------- > --- POWER (1) -------- Light Nuclear Core > --- PROPULSION (4) --- Hover Unit Hover Unit VTOL Module > --- UTILITY (4) ------ Small Storage Unit Hacking Suite Hacking Suite > --- WEAPON (2) ------- (None) > --- INVENTORY (8) ---- Light Ion Engine Light Deuterium Engine Hacking Suite Beam Rifle Particle Gun Ion Cannon Ion Cannon Grenade Launcher Peak State ------------ > --- POWER ------------ Light Nuclear Core > --- PROPULSION ------- Hover Unit Hover Unit Hover Unit VTOL Module > --- UTILITY ---------- Small Storage Unit Improved Sensor Array Hacking Suite Hacking Suite > --- WEAPON ----------- Improved Medium Laser > --- INVENTORY -------- Light Ion Engine Light Deuterium Engine Beam Rifle Particle Gun Particle Gun Grenade Launcher [Rating: 22] Favorites ----------- Power Light Ion Engine Engine Light Ion Engine Power Core Light Nuclear Core Propulsion Hover Unit Wheel Wheel Hover Unit Hover Unit Flight Unit Flight Unit Utility Hacking Suite Device Improved Sensor Array Storage Small Storage Unit Hackware Hacking Suite Weapon EM Pulse Gun Energy Gun EM Pulse Gun Ballistic Gun Light Assault Rifle Build | -11 -10 -9 -8 -8 ------- Run | Yrd Mat Mat Mat Sto Slots Evolved 4 | . . 2 2 . Power . | . . . . . Propulsion 2 | . . 2 . . Utility 2 | . . . 2 . Weapon . | . . . . . Parts Attached 30 | 7 8 6 9 . Power 6 | 2 1 1 2 . Engine 5 | 2 1 1 1 . Core 1 | . . . 1 . Reactor . | . . . . . Propulsion 10 | 2 3 2 3 . Treads . | . . . . . Leg . | . . . . . Wheel 3 | 2 1 . . . Hover 3 | . . . 3 . Flight 4 | . 2 2 . . Utility 5 | 1 1 . 3 . Device 2 | . . . 2 . Storage 1 | 1 . . . . Processor . | . . . . . Hackware 2 | . 1 . 1 . Protection . | . . . . . Artifact . | . . . . . Weapon 9 | 2 3 3 1 . Energy Gun 8 | 1 3 3 1 . Energy Cannon . | . . . . . Ballistic Gun 1 | 1 . . . . Ballistic Cannon . | . . . . . Launcher . | . . . . . Special Weapon . | . . . . . Impact Weapon . | . . . . . Slashing Weapon . | . . . . . Piercing Weapon . | . . . . . Special Melee Weapon . | . . . . . Unidentified Prototypes 1 | . . 1 . . Parts Lost 8 | . 4 1 . 3 Power 1 | . 1 . . . Propulsion 3 | . 1 1 . 1 Utility 1 | . . . . 1 Weapon 3 | . 2 . . 1 Highest Loss Streak 4 | . 4 1 . 3 To Critical Strikes . | . . . . . Average Slot Usage (%) 87 | . 88 82 87 86 Engine 6 | . 9 11 2 . Core 2 | . . . 6 9 Wheel 8 | . 18 . . . Hover 8 | . . . 19 26 Flight 12 | . 4 40 14 9 Device 3 | . . . 9 8 Storage 11 | . 14 11 9 9 Hackware 14 | . 13 11 17 18 Energy Gun 17 | . 26 8 9 7 Naked Turns . | . . . . . Heaviest Build 16 | 13 16 11 14 14 Greatest Support 22 | 20 22 16 18 18 Greatest Overweight (x) 1 | . 1 . . . Average Overweight (x) . | . . . . . Largest Inventory Capacity 8 | 8 8 8 8 8 Average Capacity 7 | 6 8 8 8 8 Most Carried 8 | 5 8 8 8 8 Average Carried 6 | 1 5 7 7 8 Final Capacity 8 | 8 8 8 8 8 Final Carried 8 | 2 8 8 8 8 Class Distribution -------------------- 50% | Mutant 31% | Scavenger-Mutant 11% | Scavenger-Sprinter 6% | Hacker-Sprinter Dominant Class ---------------- Mutant | -10/Materials Scavenger-Sprinter | -9/Materials Scavenger-Mutant | -8/Materials Scavenger-Mutant | -8/Storage Resources | -11 -10 -9 -8 -8 ----------- Run | Yrd Mat Mat Mat Sto Matter Collected 487 | 243 94 60 90 . Remotely . | . . . . . Salvage Created 377 | . 259 70 48 . Parts 30 | . 19 4 7 . Haulers Intercepted . | . . . . . Recyclers Shooed 1 | . 1 . . . Parts Field Recycled . | . . . . . Retrieved Matter . | . . . . . Parts Self-Destructed . | . . . . . Prevented . | . . . . . Kills | -11 -10 -9 -8 -8 ------- Run | Yrd Mat Mat Mat Sto Combat Hostiles Destroyed 5 | . 4 1 . . Guns 5 | . 4 1 . . Classes Destroyed 8 | . 6 1 1 . Worker 1 | . 1 . . . Builder 1 | . . . 1 . Recycler 1 | . 1 . . . Operator 2 | . 1 1 . . Watcher 3 | . 2 . 1 . Swarmer 2 | . 2 . . . Grunt 2 | . 2 . . . Sentry 1 | . . 1 . . Best Kill Streak 2 | . 2 1 1 . Combat Bots Only 2 | . 2 1 . . Max Kills in Single Turn 1 | . 1 1 1 . Gunslinging . | . . . . . Exploded . | . . . . . Melee . | . . . . . Uniques/NPCs Destroyed . | . . . . . Combat | -11 -10 -9 -8 -8 -------- Run | Yrd Mat Mat Mat Sto Hostile Shots Fired 110 | . 44 31 12 23 Missed 39 | . 10 13 8 8 Damage Taken 1013 | . 488 209 61 255 Core 299 | . 135 60 17 87 Absorbed by Shields . | . . . . . Core Remaining (%) 77 | 100 46 85 . . Volleys Fired 51 | . 29 10 12 . Largest 2 | . 2 1 1 . Hottest 130 | . 130 56 56 . Shots Fired 75 | . 53 10 12 . Gun 75 | . 53 10 12 . Cannon . | . . . . . Launcher . | . . . . . Special . | . . . . . Kinetic . | . . . . . Thermal 46 | . 24 10 12 . Explosive . | . . . . . Electromagnetic 29 | . 29 . . . Robot Hit Streak 5 | . 5 4 2 . Robot Miss Streak 5 | . 3 2 5 . Penetration Max . | . . . . . Secondary Targets . | . . . . . Shots Hit Robots 40 | . 29 6 5 . Core Hits 17 | . 11 3 3 . Critical Kills . | . . . . . Critical Parts Destroyed . | . . . . . Critical Strikes 2 | . 1 . 1 . Burn 2 | . 1 . 1 . Melee Attacks . | . . . . . Impact . | . . . . . Slashing . | . . . . . Piercing . | . . . . . Sneak Attacks . | . . . . . Combat Hostiles . | . . . . . Follow-up Attacks . | . . . . . Damage Inflicted 725 | . 518 119 88 . Guns 666 | . 459 119 88 . Cannons . | . . . . . Explosions 46 | . 46 . . . Melee . | . . . . . Ramming 13 | . 13 . . . Kinetic . | . . . . . Thermal 485 | . 278 119 88 . Explosive . | . . . . . Electromagnetic 227 | . 227 . . . Impact . | . . . . . Slashing . | . . . . . Piercing . | . . . . . Highest Corruption 1 | . . . 1 1 Average Corruption 1 | . . . 1 1 Corruption Purged . | . . . . . Corruption Blocked . | . . . . . Effects 1 | . . . . 1 Heat Flow Errors 1 | . . . . 1 Overload Shots . | . . . . . Overflow Damage 16 | . 16 . . . Projectiles . | . . . . . Explosions 16 | . 16 . . . Melee . | . . . . . Knockbacks . | . . . . . Impact . | . . . . . Kinetic . | . . . . . Secondary . | . . . . . Self-Inflicted Damage 43 | . 43 . . . Shots 1 | . 1 . . . Rammed 1 | . 1 . . . Targets Rammed 1 | . 1 . . . Kicked . | . . . . . Crushed . | . . . . . Highest Temperature 342 | . 342 139 53 117 Average Temperature 83 | . 113 47 19 49 Received Heat Transfer 462 | . 225 66 27 144 Effects 1 | . 1 . . . Interference 1 | . 1 . . . Siege Activations . | . . . . . Robots Corrupted . | . . . . . Combat Hostiles . | . . . . . Parts Fried 1 | . 1 . . . Impact Corruptions . | . . . . . Robots Melted . | . . . . . Combat Hostiles . | . . . . . Parts Melted 4 | . 1 . 3 . Heat Transferred 1197 | . 679 259 259 . Parts Sabotaged . | . . . . . Parts Stolen . | . . . . . Parts Stripped . | . . . . . Power Chain Reactions 1 | . 1 . . . Alert | -11 -10 -9 -8 -8 ------- Run | Yrd Mat Mat Mat Sto Peak Influence 275 | . 192 275 163 110 Initial 111 | . . 80 111 45 Average 99 | . 96 153 105 89 Maximum Alert Level 1 | . . 1 . . Low Security (%) 96 | 100 100 72 100 100 Level 1 3 | . . 28 . . Level 2 . | . . . . . Level 3 . | . . . . . Level 4 . | . . . . . Level 5 . | . . . . . High Security . | . . . . . Max Security . | . . . . . Squads Dispatched 8 | . 2 1 3 2 Investigation 5 | . 1 . 3 1 Extermination . | . . . . . Reinforcement 3 | . 1 1 . 1 Assault . | . . . . . Garrison . | . . . . . Intercept . | . . . . . Searches Triggered . | . . . . . Construction Impeded . | . . . . . Haulers Reinforced . | . . . . . Active Scanning Responses . | . . . . . Cargo Convoy Interrupts . | . . . . . Stealth | -11 -10 -9 -8 -8 --------- Run | Yrd Mat Mat Mat Sto Distress Signals 2 | . 1 1 . . Communications Jammed . | . . . . . Distress Signals . | . . . . . Times Spotted 45 | . 12 13 14 6 Peak Tracking Total 10 | . 3 10 10 5 Tactical Retreats 6 | . 3 . 2 1 Traps | -11 -10 -9 -8 -8 ------- Run | Yrd Mat Mat Mat Sto Traps Triggered . | . . . . . Indirectly . | . . . . . Trap Hack Attempts . | . . . . . Triggered . | . . . . . Disarmed . | . . . . . Reprogrammed . | . . . . . Reused . | . . . . . Traps Extracted . | . . . . . Installed . | . . . . . Triggered . | . . . . . Machines | -11 -10 -9 -8 -8 ---------- Run | Yrd Mat Mat Mat Sto Machines Disabled 2 | . 2 . . . Max in Single Turn 1 | . 1 . . . Machines Repaired . | . . . . . Machines Dismantled . | . . . . . Machines Sabotaged . | . . . . . Overloaded Fab Kills . | . . . . . Hacking | -11 -10 -9 -8 -8 --------- Run | Yrd Mat Mat Mat Sto Machines Accessed 10 | . 3 2 4 1 Terminals 8 | . 2 2 3 1 Fabricators . | . . . . . Repair Stations . | . . . . . Recycling Units 1 | . 1 . . . Scanalyzers 1 | . . . 1 . Garrison Access . | . . . . . Total Hacks 41 | . 11 5 22 3 Successful 38 | . 10 5 21 2 Failed 3 | . 1 . 1 1 Catastrophic . | . . . . . Database Lockouts . | . . . . . Manual . | . . . . . Terminals 35 | . 8 5 19 3 Fabricators . | . . . . . Repair Stations . | . . . . . Recycling Units 3 | . 3 . . . Scanalyzers 3 | . . . 3 . Garrison Access . | . . . . . Terminal Hacks 32 | . 7 5 18 2 Record 2 | . 1 . 1 . Prototype ID Bank 2 | . . . 2 . Level Access Points 1 | . . 1 . . Emergency Access Points 2 | . . 2 . . Recycling Unit Index 1 | . 1 . . . Alert Level 7 | . 3 . 3 1 Unreport Threat 2 | . 1 . 1 . Locate Traps 1 | . . . 1 . Maintenance Status 4 | . . 1 3 . Security Status 3 | . . . 3 . Surveillance Status 1 | . 1 . . . Patrol Status 1 | . . . 1 . Extermination Status 1 | . . . . 1 Hauler Manifests 1 | . . 1 . . Registered Components 1 | . . . 1 . Registered Prototypes 1 | . . . 1 . Zone Layout 1 | . . . 1 . Fabricator Hacks . | . . . . . Repair Station Hacks . | . . . . . Recycling Unit Hacks 3 | . 3 . . . Report Inventory 2 | . 2 . . . Retrieve Components 1 | . 1 . . . Scanalyzer 3 | . . . 3 . Insert Component 2 | . . . 2 . Analyze 1 | . . . 1 . Garrison Access Hacks . | . . . . . Unauthorized Hacks . | . . . . . Terminals . | . . . . . Fabricators . | . . . . . Repair Stations . | . . . . . Recycling Units . | . . . . . Scanalyzers . | . . . . . Garrison Access . | . . . . . Data Cores Recovered 1 | . . 1 . . Used . | . . . . . Hacking Detections 8 | . 2 1 4 1 Full Trace Events 6 | . 1 . 4 1 Feedback Events 1 | . . . 1 . Corruption 1 | . . . 1 . Feedback Blocked . | . . . . . Robot Schematics Acquired . | . . . . . Robots Built . | . . . . . Authchips . | . . . . . Time . | . . . . . Total Robot Build Rating . | . . . . . Part Schematics Acquired 1 | . . . 1 . Parts Built . | . . . . . Authchips . | . . . . . Time . | . . . . . Total Part Build Rating . | . . . . . Parts Repaired . | . . . . . Time . | . . . . . Parts Recycled . | . . . . . Recycled Matter . | . . . . . Retrieved Matter . | . . . . . Retrieved Components 2 | . 2 . . . Parts Scanalyzed 1 | . . . 1 . Part Schematics Acquired 1 | . . . 1 . Parts Damaged . | . . . . . Bothacking | -11 -10 -9 -8 -8 ------------ Run | Yrd Mat Mat Mat Sto Used RIF Installer . | . . . . . Robots Hacked . | . . . . . Non-combat . | . . . . . Combat . | . . . . . Robot Hacks Applied . | . . . . . Relay Couplers Released . | . . . . . Fabnet Peak Effective % . | . . . . . Robots Rewired . | . . . . . Allies Hacked . | . . . . . Hacks Repelled . | . . . . . Allies | -11 -10 -9 -8 -8 -------- Run | Yrd Mat Mat Mat Sto Total Allies . | . . . . . Largest Group . | . . . . . Highest-Rated Group . | . . . . . Highest-Rated Ally . | . . . . . Total Orders . | . . . . . Ally Attacks . | . . . . . Total Damage . | . . . . . Kills . | . . . . . Allies Corrupted . | . . . . . Allies Melted . | . . . . . Intel | -11 -10 -9 -8 -8 ------- Run | Yrd Mat Mat Mat Sto Robot Analysis Total . | . . . . . Derelict Logs Recovered . | . . . . . Drone Launches . | . . . . . Drone Recoveries . | . . . . . Exploration | -11 -10 -9 -8 -8 ------------- Run | Yrd Mat Mat Mat Sto Turns Passed 869 | 45 392 100 241 91 Spaces Moved 1055 | 45 314 195 389 112 Core 18 | 18 . . . . Treads . | . . . . . Legs . | . . . . . Wheels 293 | 27 266 . . . Hover 402 | . . . 290 112 Flight 342 | . 48 195 99 . Fastest Speed 29 | 50 80 29 32 52 Average Speed 57 | 68 88 29 46 52 Slowest Speed 117 | 80 117 34 52 56 Overloaded Moves . | . . . . . Propulsion Burnouts . | . . . . . Robots Hopped . | . . . . . Cave-ins Triggered . | . . . . . Exploration Rate (%) 22 | 4 46 27 18 16 Regions Visited 4 Branch Regions 1 Pre-discovered Areas . | . . . . . Known Exits Taken 1 | . . 1 . . Unknown Exits Taken 3 | 1 1 . 1 . Scrap Searched . | . . . . . Spaces Dug . | . . . . . Terrain Destroyed 6 | . 6 . . . Melee . | . . . . . Projectile . | . . . . . AOE 6 | . 6 . . . Terrain Rammed . | . . . . . Walls Destroyed . | . . . . . Machines Disabled . | . . . . . Actions | -11 -10 -9 -8 -8 --------- Run | Yrd Mat Mat Mat Sto Total 1242 | 58 374 230 436 144 Wait 60 | . 8 4 16 32 Move 1051 | 44 313 194 388 112 Hop . | . . . . . Pick Up 32 | 7 13 7 5 . Fast Attach 2 | 1 . . 1 . Attach 19 | 5 6 5 3 . Detach 4 | . . 3 1 . Swap 9 | 1 2 1 5 . Drop 13 | . 2 6 5 . Fire 51 | . 29 10 12 . Melee . | . . . . . Ram 1 | . 1 . . . Kick . | . . . . . Crush . | . . . . . Escape Stasis . | . . . . . Rewire . | . . . . . Trap . | . . . . . Miscellaneous . | . . . . . Route ------- -11/Scrapyard -10/Materials (discovered 2 exits: *Mat / [*Min]) -9/Materials (discovered 4 exits: *Mat x3 / [*Min]) -8/Materials -8/Storage History --------- Turn | Location | Event 3 | -11/Scrapyard | Discovered new exit (range 15) 46 | -11/Scrapyard | Entered Materials 137 | -10/Materials | Discovered new exit (range 15) 253 | -10/Materials | Discovered new exit (range 8) 286 | -10/Materials | Lost 4 parts (1p1n2w) 303 | -10/Materials | Build established: Mutant 356 | -10/Materials | Core integrity fell below 50% 438 | -10/Materials | Entered another Materials area 438 | -9/Materials | Evolved 2 slots: Propulsion x2 451 | -9/Materials | Discovered new exit (range 9) 509 | -9/Materials | Identified exit to Materials 538 | -9/Materials | Entered another Materials area 538 | -8/Materials | Evolved 2 slots: Utility x2 541 | -8/Materials | Discovered new exit (range 15) 779 | -8/Materials | Entered Storage 870 | -8/Storage | Self-destructed Last Messages --------------- GOAL=ESCAPE 00793_ Connecting with Terminal... 00793_ Current location identified: Storage >>Alert(Check) Current Alert Level: Low Security >>Enumerate(Exterminations) Retrieving latest reported positions... No active extermination squads found. 00793_ ALERT: Suspicious activity at Terminal S005. Dispatching Investigation squad. 00797_ K-01 Serf cleans the Transport Mainframe. 00801_ ALERT: Hostiles spotted, dispatching reinforcements to Terminal S003. 00802_ Terminal disabled. 00849_ Critical hit (Burn: +37). 00851_ Imp. Medium Laser destroyed. 00853_ Connecting with Door Terminal... 00857_ System corrupted: Heat flow error (+132). 00862_ Imp. Sensor Array destroyed. 00868_ Hover Unit destroyed. Map ----- +----------------------------------------------------+ | | | | | | | | | | | | | | | | | | | | | | | | | | | | | | | | | | | | | ?????????????????????????????????????????????? | | ?????????????????????????????????????????????? | | ?????????????????????????????????????????????? | | ??######?????????????????????????????????????? | | # #####?????????????????????????????????? | | # """ # #??????????###????????????????????? | | # """ # #??????#####T##???????????????????? | | # """ # #??????#]]@" #????##?????????????? | | # # #??????#Yggg #####T######????????? | | # """ # #??????##### ## #????????? | | # """ + #????????###+### #????????? | | # """ # ########## # #????????? | | # # # #????????? | | # """ # + """" #????????? | | # """ # ! # """" #???????? | | # """ #########+#### # """" ##???????? | | # #???# ####### """" ??????????? | | ########???# #?????########???????????? | | ???????????# """" #????????????????????????? | | ???????????# "??"" #????????????????????????? | | ???????????# "???"" #????????????????????????? | | ???????????# ""???" #????????????????????????? | | ???????????# ""??" #????????????????????????? | | ???????????# """" #????????????????????????? | | ???????????# #????????????????????????? | | ???????????##########????????????????????????? | | ?????????????????????????????????????????????? | | ?????????????????????????????????????????????? | | ?????????????????????????????????????????????? | | ?????????????????????????????????????????????? | | ?????????????????????????????????????????????? | | ?????????????????????????????????????????????? | +----------------------------------------------------+ Best States ------------- Heat Dissipation 31 Energy Generation 14 Energy Capacity 250 Matter Stores 300 Matter Capacity 300 Sight Range 16 Robot Scan Range 15 Terrain Scan Density 10 Evasion (%) 64 Offensive Hacking 20 Item Schematics ----------------- Particle Gun | -8/Materials | Scanalyzed Robot Schematics ------------------ None Fabricated ------------ Nothing Alien Tech Used ----------------- None Achievements -------------- Party Time Challenges ------------ None Game ------ Seed RemoteProjectionExpander Manual? 0 Play Time 00:39:01 Cumulative 17.7 hours Start 2024.03.21 @ 18:59:04 End 2024.03.21 @ 19:56:53 Sessions 3 Manual Loads 0 Difficulty Rogue Special Mode None Game No. 15 Rogue 13 Adventurer 0 Explorer 2 Win Type - Total 0 Types 0/0/0/0/0/0/0/0/0 Lore% 7 Gallery% 15 Achievement% 13 Wizard Run 0 Options --------- Layout 1 ASCII 0 Keyboard 0 Movement Mouse Keybinds 0 Fullscreen 2 Font 48/Smallcaps Map View 50x35 Zoom Use 0% Tactical HUD 1 Map Filters NONE Filters NONE Steam 1 RUN: 6106e9e4-5358-455e-9c5e-e60e74c45cfe